bitfinex-derivatives/quotes_BTCF0:USTF0_20250814
["timestamp","ask_amount","ask_price","bid_price","bid_amount"]
[1755148474940,1.42439019,122970.0,122960.0,0.29881047]
[1755148475135,0.24290449,122970.0,122960.0,0.22142478]
[1755148475341,0.16161539,122970.0,122960.0,0.22142478]
[1755148475540,0.04161539,122970.0,122960.0,1.10409046]
[1755148475744,0.04261539,122970.0,122960.0,1.10409046]
[1755148475941,0.12390459,122970.0,122960.0,1.10409046]
[1755148476145,0.12590459,122970.0,122960.0,0.14501906]
[1755148476345,0.12590459,122970.0,122960.0,0.01072645]
[1755148476346,1.0069125,122970.0,122960.0,0.01072645]
[1755148476552,0.60469053,122970.0,122960.0,0.11562215]
[1755148476733,0.61493769,122970.0,122960.0,0.11562215]
[1755148476940,0.25413769,122970.0,122960.0,0.60899785]
[1755148477137,1.39573769,122970.0,122960.0,0.12741645]
[1755148477440,1.77797299,122970.0,122960.0,0.20871215]
[1755148477641,1.37768729,122970.0,122960.0,0.20871215]
[1755148478646,0.15479809,122970.0,122960.0,0.60899785]
[1755148478840,0.03479809,122970.0,122960.0,0.96979785]
[1755148479240,0.03479809,122970.0,122960.0,0.98251049]
[1755148479538,0.03465439,122970.0,122960.0,0.96979785]
[1755148479741,0.06435798,123000.0,122980.0,0.0812829]
[1755148479942,0.02334892,123000.0,122990.0,0.5587663]
[1755148480247,0.38691236,123020.0,123010.0,0.1979531]
[1755148480436,0.14335334,123020.0,123010.0,0.5982388]
[1755148480840,0.14345595,123020.0,123010.0,0.5982388]
[1755148481144,0.02345595,123020.0,123010.0,1.86096618]
[1755148481355,0.3608,123040.0,123030.0,0.1979398]
[1755148481646,0.38512,123060.0,123050.0,0.1979266]
[1755148481851,0.38512,123060.0,123050.0,0.5982123]
[1755148481852,0.50512,123060.0,123050.0,0.5982123]
[1755148482042,0.22555,123060.0,123050.0,0.5972123]
[1755148482440,0.24905639,123060.0,123050.0,0.1969266]
[1755148482639,0.0812367,123050.0,123040.0,0.5232776]
[1755148482853,0.1290167,123050.0,123040.0,0.6240876]
[1755148483049,1.00014879,123050.0,123040.0,0.14617139]
[1755148483245,1.79912083,123050.0,123040.0,0.0236]
[1755148483549,0.1290228,123040.0,123030.0,0.07899]
[1755148483746,0.1290228,123040.0,123030.0,0.06272]
[1755148483947,0.1290228,123040.0,123030.0,0.1439694]
[1755148484145,0.1290228,123040.0,123030.0,0.07699]
[1755148484349,0.1290228,123040.0,123030.0,0.11469]
[1755148484548,0.4998228,123040.0,123030.0,0.11469]
[1755148484949,1.2828628,123040.0,123030.0,0.11869]
[1755148485144,0.5018228,123040.0,123030.0,0.11869]
[1755148485445,0.90215489,123040.0,123030.0,0.004]
[1755148485649,1.68323489,123040.0,123030.0,0.004]
[1755148485949,0.50186919,123040.0,123030.0,0.004]
[1755148486148,1.6832285,123040.0,123030.0,0.004]
[1755148486355,0.9021085,123040.0,123030.0,0.004]
[1755148486554,1.6829485,123040.0,123030.0,0.004]
[1755148487749,1.2826628,123040.0,123030.0,0.004]
[1755148487962,1.6829485,123040.0,123030.0,0.004]
[1755148488752,1.75130064,123040.0,123030.0,0.004]
[1755148491257,0.97046064,123040.0,123030.0,0.004]
[1755148491753,0.97046064,123040.0,123010.0,0.004]
[1755148491754,0.1342365,123020.0,123010.0,0.004]
[1755148491957,0.15256889,123010.0,123000.0,0.0236]
[1755148492153,1.10205312,123010.0,123000.0,0.06946]
[1755148492357,0.63341528,123010.0,123000.0,0.06946]
[1755148492561,1.41521528,123010.0,123000.0,0.11669]
[1755148493453,1.43832675,123010.0,123000.0,0.11669]
[1755148493656,1.43832675,123010.0,123000.0,0.10242]
[1755148493959,1.44032675,123010.0,123000.0,0.08654]
[1755148494562,1.44132675,123010.0,123000.0,0.09154]
[1755148494862,1.44132675,123010.0,123000.0,0.10425048]
[1755148495551,0.65952675,123010.0,123000.0,0.01771048]
[1755148495956,1.44088675,123010.0,123000.0,0.01771055]
[1755148496462,1.44076675,123010.0,123000.0,0.01771055]
[1755148496661,1.44076675,123010.0,123000.0,0.04163055]
[1755148497752,0.65952675,123010.0,123000.0,0.01771055]
[1755148497954,1.90920459,123010.0,123000.0,0.01771055]
[1755148498354,1.90920459,123010.0,123000.0,0.005]
[1755148499262,1.44056675,123010.0,123000.0,0.005]
[1755148499459,1.90920459,123010.0,123000.0,0.005]
[1755148499866,1.9083582,123010.0,123000.0,0.005]
[1755148500461,1.9083582,123010.0,123000.0,0.01771175]
[1755148501062,0.65948036,123010.0,123000.0,0.01771175]
[1755148501263,0.65948036,123010.0,123000.0,0.01771182]
[1755148501264,1.43936036,123010.0,123000.0,0.01771182]
[1755148501769,0.65948036,123010.0,123000.0,0.01771182]
[1755148502072,1.43936036,123010.0,123000.0,0.04163182]
[1755148502373,1.43916036,123010.0,123000.0,0.04163182]
[1755148503168,0.65948036,123010.0,123000.0,0.04163182]
[1755148503370,0.65948036,123010.0,123000.0,0.08803182]
[1755148503564,1.43852675,123010.0,123000.0,0.13654182]
[1755148503975,0.65952675,123010.0,123000.0,0.12383]
[1755148504276,0.63606675,123010.0,123000.0,0.2178118]
[1755148504475,1.43844675,123010.0,123000.0,0.136541]
[1755148504673,1.41498675,123010.0,123000.0,0.2178118]
[1755148504872,1.41474675,123010.0,123000.0,0.2051008]
[1755148505174,1.43820675,123010.0,123000.0,0.13654074]
[1755148506071,1.43820675,123010.0,123000.0,0.21781154]
[1755148506072,0.65952675,123010.0,123000.0,0.21781154]
[1755148506266,0.63606675,123010.0,123000.0,0.21781154]
[1755148506471,0.63606675,123010.0,123000.0,0.68644938]
[1755148506666,1.41414675,123010.0,123000.0,0.68644938]
[1755148506875,0.24574675,123010.0,123000.0,0.68644938]
[1755148507077,1.02382675,123010.0,123000.0,0.68644938]
[1755148507276,0.24574675,123010.0,123000.0,0.68644938]
[1755148507478,0.16448365,123010.0,123000.0,0.68644938]
[1755148507677,0.16448365,123010.0,123000.0,0.23052095]
[1755148507878,0.24574785,123010.0,123000.0,0.69915879]
[1755148508272,0.24574785,123010.0,123000.0,0.23052095]
[1755148508583,0.24574785,123010.0,123000.0,0.69915879]
[1755148509379,0.14137218,123010.0,123000.0,1.18210149]
[1755148510077,0.14137218,123010.0,123000.0,1.16939075]
[1755148510281,0.14137218,123010.0,123000.0,1.18209796]
[1755148510588,0.22263638,123010.0,123000.0,1.18209796]
[1755148510883,0.22263638,123010.0,123000.0,1.11332667]
[1755148511378,0.22263638,123010.0,123000.0,0.71346012]
[1755148511577,0.14137218,123010.0,123000.0,1.11332667]
[1755148511974,0.22263638,123010.0,123000.0,1.11332667]
[1755148512273,0.14137218,123010.0,123000.0,1.27591867]
[1755148512482,0.1645353,123010.0,123000.0,1.67578522]
[1755148512681,0.2457995,123010.0,123000.0,1.11332667]
[1755148513476,0.1645353,123010.0,123000.0,1.11332667]
[1755148513682,0.1645353,123010.0,123000.0,1.51319322]
[1755148513876,0.1645353,123010.0,123000.0,2.29027322]
[1755148514275,0.1645353,123010.0,123000.0,1.49054012]
[1755148514480,0.1645353,123010.0,123000.0,2.29027322]
[1755148514778,0.1645353,123010.0,123000.0,2.2902733]
[1755148515285,0.02620951,123010.0,123000.0,2.4528653]
[1755148515473,0.5233095,123030.0,123020.0,0.2000878]
[1755148515678,0.5233095,123030.0,123020.0,0.62537105]
[1755148516078,0.5545895,123030.0,123020.0,0.62537105]
[1755148516381,0.5233095,123030.0,123020.0,0.62537105]
[1755148517584,0.5243095,123030.0,123020.0,0.62837105]
[1755148518586,0.5263095,123030.0,123020.0,0.63037105]
[1755148518986,0.5263095,123030.0,123020.0,1.40873105]
[1755148519186,0.5263095,123030.0,123020.0,1.3960227]
[1755148519384,0.5263095,123030.0,123020.0,1.39602183]
[1755148520288,0.5263095,123030.0,123020.0,1.00886276]
[1755148520581,0.5735195,123030.0,123020.0,0.63036931]
[1755148520786,0.5735195,123030.0,123020.0,0.61766183]
[1755148521486,0.5956995,123030.0,123020.0,0.61766183]
[1755148521788,0.5263095,123030.0,123020.0,0.61766183]
[1755148522379,0.1655095,123030.0,123020.0,0.61766183]
[1755148522590,0.003,123030.0,123020.0,1.53145928]
[1755148522779,0.0842509,123030.0,123020.0,1.69402728]
[1755148523079,0.0842509,123030.0,123020.0,0.9017998]
[1755148523285,0.003,123030.0,123020.0,0.9017998]
[1755148523485,0.003,123030.0,123020.0,1.6815198]
[1755148523486,0.084251,123030.0,123020.0,1.6815198]
[1755148523685,0.003,123030.0,123020.0,0.7392318]
[1755148523885,0.003,123030.0,123020.0,1.5189518]
[1755148524488,0.003,123030.0,123020.0,2.0423198]
[1755148524787,0.003,123030.0,123020.0,1.8797518]
[1755148525188,0.003,123030.0,123020.0,1.87975054]
[1755148525391,0.003,123030.0,123020.0,1.47988399]
[1755148525589,0.003,123030.0,123020.0,1.87971054]
[1755148525984,0.003,123030.0,123020.0,1.87963054]
[1755148526590,0.003,123030.0,123020.0,1.10003054]
[1755148526783,0.003,123030.0,123020.0,1.87979054]
[1755148527182,0.0842511,123030.0,123020.0,1.87979054]
[1755148527389,0.09613032,123030.0,123020.0,1.87979054]
[1755148527891,0.02601032,123030.0,123020.0,1.87979054]
[1755148528093,0.02601032,123030.0,123020.0,1.10003059]
[1755148528494,0.02601032,123030.0,123020.0,1.87891059]
[1755148531086,0.02601032,123030.0,123020.0,1.86620439]
[1755148531291,0.02601032,123030.0,123020.0,1.87891059]
[1755148531888,0.10726132,123030.0,123020.0,1.47904404]
[1755148532094,0.10726132,123030.0,123020.0,1.87891059]
[1755148532491,0.10726132,123030.0,123020.0,1.10003059]
[1755148532891,0.02601032,123030.0,123020.0,1.87759059]
[1755148533197,0.02601032,123030.0,123020.0,1.10003059]
[1755148533394,0.02601032,123030.0,123020.0,1.87759059]
[1755148534598,0.10726142,123030.0,123020.0,1.87759059]
[1755148534991,0.10726142,123030.0,123020.0,0.70016404]
[1755148535291,1.08983188,123030.0,123020.0,0.0177062]
[1755148535486,1.08983188,123030.0,123020.0,0.05454298]
[1755148535689,1.08983188,123030.0,123020.0,0.13225448]
[1755148535891,0.68996533,123030.0,123020.0,0.21661448]
[1755148537396,0.68996533,123030.0,123020.0,0.22932254]
[1755148538398,0.68996533,123030.0,123020.0,0.21661448]
[1755148539796,0.68996533,123030.0,123020.0,0.61648103]
[1755148540593,0.68996533,123030.0,123020.0,0.21661448]
[1755148540898,0.68996533,123030.0,123020.0,0.22932243]
[1755148541200,0.66650533,123030.0,123020.0,0.22932243]
[1755148541387,0.68996533,123030.0,123020.0,0.22932243]
[1755148542589,0.68996533,123030.0,123020.0,0.62918898]
[1755148542996,0.66650533,123030.0,123020.0,0.62918971]
[1755148543606,0.63522533,123030.0,123020.0,0.62918971]
[1755148543905,0.40513423,123030.0,123020.0,1.40798971]
[1755148544395,0.48638533,123030.0,123020.0,1.40798971]
[1755148544700,0.55650533,123030.0,123020.0,1.40798971]
[1755148544901,0.57996533,123030.0,123020.0,1.00812316]
[1755148545202,0.57996533,123030.0,123020.0,0.62918971]
[1755148545399,0.57996533,123030.0,123020.0,1.40786971]
[1755148545603,0.21916533,123030.0,123020.0,1.40786971]
[1755148545796,0.19570533,123030.0,123020.0,1.38245425]
[1755148545991,0.19570533,123030.0,123020.0,1.40786851]
[1755148546200,0.09125423,123030.0,123020.0,1.40790851]
[1755148546398,0.17250523,123030.0,123020.0,1.40790851]
[1755148547607,0.12558523,123030.0,123020.0,1.40790851]
[1755148547800,0.04433423,123030.0,123020.0,0.62918851]
[1755148547998,0.12558533,123030.0,123020.0,1.87807286]
[1755148548305,0.15686533,123030.0,123020.0,1.87807286]
[1755148548704,0.15686533,123030.0,123020.0,1.89077939]
[1755148549401,0.12558533,123030.0,123020.0,1.89077939]
[1755148549600,0.12558533,123030.0,123020.0,1.11233939]
[1755148549803,0.12558533,123030.0,123020.0,1.89033939]
[1755148551210,0.12558533,123030.0,123020.0,1.49047284]
[1755148551607,0.15686533,123030.0,123020.0,1.89033939]
[1755148552008,0.12558533,123030.0,123020.0,1.89033939]
[1755148552402,0.10726142,123030.0,123020.0,1.49047284]
[1755148552606,0.10726142,123030.0,123020.0,1.89033939]
[1755148553012,0.13854142,123030.0,123020.0,1.89033939]
[1755148555314,0.02601032,123030.0,123020.0,1.89033939]
[1755148556714,0.02601032,123030.0,123020.0,1.11233939]
[1755148556917,0.02601032,123030.0,123020.0,1.88985939]
[1755148558911,0.00828562,123050.0,123040.0,0.1984144]
[1755148559107,0.2012378,123050.0,123040.0,1.40085461]
[1755148559411,0.2730178,123050.0,123040.0,1.40061461]
[1755148560012,0.2730178,123050.0,123040.0,0.62369461]
[1755148560213,0.2730178,123050.0,123040.0,1.40061461]
[1755148560609,0.2750178,123050.0,123040.0,1.40261461]
[1755148560809,0.2750178,123050.0,123040.0,1.40461461]
[1755148561213,0.2962078,123050.0,123040.0,1.40461461]
[1755148561512,0.32801277,123050.0,123040.0,1.40461461]
[1755148561912,0.32801277,123050.0,123040.0,1.00474806]
[1755148562112,0.30421277,123050.0,123040.0,1.00474806]
[1755148562312,0.32801277,123050.0,123040.0,1.00474806]
[1755148565314,0.32801277,123050.0,123040.0,0.22782806]
[1755148565510,0.32801277,123050.0,123040.0,1.00290806]
[1755148566111,0.29024277,123050.0,123040.0,0.14658366]
[1755148566309,1.08867932,123050.0,123040.0,0.14658366]
[1755148566722,1.08867932,123050.0,123040.0,0.01670653]
[1755148567807,1.86339932,123050.0,123040.0,0.01670653]
[1755148568808,1.86323932,123050.0,123040.0,0.01670653]
[1755148569810,1.86323932,123050.0,123040.0,0.12117093]
[1755148570008,1.86323932,123050.0,123040.0,0.15433093]
[1755148570206,1.86323932,123050.0,123040.0,0.19404093]
[1755148570410,1.86323932,123050.0,123040.0,0.21512093]
[1755148570911,1.88653022,123050.0,123040.0,0.21512093]
[1755148572811,1.48666367,123050.0,123040.0,0.13387653]
[1755148573017,1.88653022,123050.0,123040.0,0.13387653]
[1755148573316,1.48666367,123050.0,123040.0,0.13387653]
[1755148573719,1.88653022,123050.0,123040.0,0.13387653]
[1755148574220,1.8865363,123050.0,123040.0,0.13387653]
[1755148574723,1.8865363,123050.0,123040.0,0.08582653]
[1755148574924,1.8865363,123050.0,123040.0,0.08582686]
[1755148577324,1.8865363,123050.0,123040.0,0.03992686]
[1755148577916,1.8865363,123050.0,123040.0,0.02941385]
[1755148579324,1.8865363,123050.0,123040.0,0.01670686]
[1755148581829,1.48666975,123050.0,123040.0,0.01670686]
[1755148582328,1.8865363,123050.0,123040.0,0.01670686]
[1755148583431,1.8865363,123050.0,123040.0,0.03992686]
[1755148583826,1.8865363,123050.0,123040.0,0.03992752]
[1755148583827,1.48666975,123050.0,123040.0,0.03992752]
[1755148584127,1.8865363,123050.0,123040.0,0.03992752]
[1755148585529,1.48666975,123050.0,123040.0,0.11938752]
[1755148585828,0.71210975,123050.0,123040.0,0.21533262]
[1755148586019,0.71210975,123050.0,123040.0,0.6279056]
[1755148586020,0.61191975,123050.0,123040.0,0.6279056]
[1755148586224,0.32901975,123050.0,123040.0,0.62790544]
[1755148586423,0.35210975,123050.0,123040.0,0.22803889]
[1755148586834,0.71290975,123050.0,123040.0,0.22803889]
[1755148588829,0.64375975,123050.0,123040.0,0.62790544]
[1755148589033,0.31423975,123050.0,123040.0,0.62790544]
[1755148589435,0.32901975,123050.0,123040.0,0.62790544]
[1755148589636,0.35210975,123050.0,123040.0,0.22803889]
[1755148590333,0.71290975,123050.0,123040.0,0.22803889]
[1755148590837,0.61191975,123050.0,123040.0,0.62790544]
[1755148591239,0.25111975,123050.0,123040.0,0.62790326]
[1755148591435,0.29717975,123050.0,123040.0,0.62790326]
[1755148591829,0.30677975,123050.0,123040.0,0.62790326]
[1755148592033,0.32901975,123050.0,123040.0,0.62790326]
[1755148593835,0.35210975,123050.0,123040.0,0.62790326]
[1755148594036,0.35210975,123050.0,123040.0,0.22803671]
[1755148594742,0.7519763,123050.0,123040.0,0.22803671]
[1755148595144,0.35210975,123050.0,123040.0,0.22803671]
[1755148595341,1.1127763,123050.0,123040.0,0.06187161]
[1755148595541,1.8823763,123050.0,123040.0,0.09488161]
[1755148595740,1.8823763,123050.0,123040.0,0.08217534]
[1755148597145,1.8823763,123050.0,123040.0,0.13494534]
[1755148597544,1.8823763,123050.0,123040.0,0.02941177]
[1755148597746,1.8823763,123050.0,123040.0,0.01670534]
[1755148598046,1.1127763,123050.0,123040.0,0.01670534]
[1755148598247,1.940253,123050.0,123040.0,0.004]
[1755148598635,1.170893,123050.0,123040.0,0.004]
[1755148598837,1.8820963,123050.0,123040.0,0.01670779]
[1755148599045,0.1819893,123020.0,123010.0,0.2660651]
[1755148599243,0.60515283,123020.0,123010.0,0.29347304]
[1755148599443,0.20528628,123020.0,123010.0,0.29347304]
[1755148599848,0.20528628,123020.0,123010.0,0.69333959]
[1755148600250,0.15284628,123020.0,123010.0,0.69333959]
[1755148600447,0.18219628,123020.0,123010.0,0.69333959]
[1755148600655,0.20528628,123020.0,123010.0,0.69333959]
[1755148601653,0.56608628,123020.0,123010.0,0.29347304]
[1755148604151,0.56808628,123020.0,123010.0,0.29547304]
[1755148604551,0.12702698,123020.0,123010.0,1.06013959]
[1755148604753,0.10393698,123020.0,123010.0,1.06013947]
[1755148604953,0.08169698,123020.0,123010.0,1.06013947]
[1755148605549,0.02629698,123020.0,123010.0,1.18240874]
[1755148605757,0.02629698,123020.0,123010.0,1.95012874]
[1755148606055,0.02629698,123020.0,123010.0,1.18240874]
[1755148606255,0.003,123020.0,123010.0,1.95044874]
[1755148606559,0.003,123020.0,123010.0,2.11307274]
[1755148606751,0.003,123020.0,123010.0,1.95028874]
[1755148607355,0.73163247,123050.0,123040.0,0.1994862]
[1755148607555,0.87457794,123050.0,123040.0,0.61206057]
[1755148607854,0.87457794,123050.0,123040.0,0.1994861]
[1755148608347,0.88457794,123050.0,123040.0,0.1994861]
[1755148608551,0.88457794,123050.0,123040.0,0.1984861]
[1755148608950,0.88457794,123050.0,123040.0,0.1964861]
[1755148609348,0.1034861,123040.0,123030.0,0.242865]
[1755148609554,0.21092157,123040.0,123030.0,0.2934414]
[1755148610048,0.57172157,123040.0,123030.0,0.2934414]
[1755148610850,0.21092157,123040.0,123030.0,0.2934414]
[1755148611050,0.21092157,123040.0,123030.0,0.30614785]
[1755148611957,0.21292157,123040.0,123030.0,0.31314785]
[1755148612165,0.12364157,123040.0,123030.0,0.7160144]
[1755148612351,0.12364157,123040.0,123030.0,1.4863344]
[1755148613357,0.10719157,123040.0,123030.0,1.4863344]
[1755148613659,0.10719157,123040.0,123030.0,1.48633412]
[1755148614258,0.02594547,123040.0,123030.0,1.48633412]
[1755148614958,0.10719127,123040.0,123030.0,1.48633412]
[1755148617152,0.02594547,123040.0,123030.0,1.44726757]
[1755148617353,0.10719127,123040.0,123030.0,1.48633412]
[1755148618163,0.10719127,123040.0,123030.0,1.08646757]
[1755148618363,0.10719127,123040.0,123030.0,1.48633412]
[1755148619460,0.02594547,123040.0,123030.0,1.48633412]
[1755148619667,0.02594547,123040.0,123030.0,1.48513412]
[1755148619861,0.02594547,123040.0,123030.0,1.48505412]
[1755148620761,0.02594547,123040.0,123030.0,1.48585412]
[1755148621167,0.02594547,123040.0,123030.0,1.19948015]
[1755148621464,0.02594547,123040.0,123030.0,1.96932015]
[1755148621963,0.02594973,123040.0,123030.0,1.96932015]
[1755148624061,0.10719543,123040.0,123030.0,1.96932015]
[1755148625454,0.02594973,123040.0,123030.0,1.96932015]
[1755148625862,0.02594973,123040.0,123030.0,1.2086536]
[1755148626067,0.02594973,123040.0,123030.0,1.60852015]
[1755148626268,0.02594973,123040.0,123030.0,0.83868015]
[1755148626466,0.02594973,123040.0,123030.0,1.60752015]
[1755148626665,0.02594973,123040.0,123030.0,1.96832015]
[1755148629264,0.02594973,123040.0,123030.0,1.19948015]
[1755148629466,0.52371363,123070.0,123060.0,0.1998826]
[1755148629668,0.65848363,123070.0,123060.0,1.38053527]
[1755148629868,0.52371363,123070.0,123060.0,0.62515897]
[1755148630068,0.54428363,123070.0,123060.0,1.38037527]
[1755148630268,0.55848363,123070.0,123060.0,1.38037527]
[1755148630473,0.56771363,123070.0,123060.0,1.38037527]
[1755148631062,0.52371363,123070.0,123060.0,1.38137527]
[1755148631467,0.5163631,123070.0,123060.0,1.38137527]
[1755148631772,0.4351371,123070.0,123060.0,1.38137527]
[1755148631971,0.4361371,123070.0,123060.0,0.98750872]
[1755148632272,0.4361371,123070.0,123060.0,1.38737527]
[1755148632767,0.4361371,123070.0,123060.0,0.61945527]
[1755148632970,0.4361371,123070.0,123060.0,1.38665527]
[1755148633371,0.4567071,123070.0,123060.0,1.38665527]
[1755148633566,0.4361371,123070.0,123060.0,1.38665527]
[1755148634274,0.517363,123070.0,123060.0,1.38665527]
[1755148634874,0.553493,123070.0,123060.0,1.38665527]
[1755148635374,0.4361371,123070.0,123060.0,1.38665527]
[1755148635575,0.4361371,123070.0,123060.0,0.61945527]
[1755148635766,0.4361371,123070.0,123060.0,1.38597527]
[1755148636371,0.517363,123070.0,123060.0,1.38597527]
[1755148636671,0.4361371,123070.0,123060.0,0.61945527]
[1755148636868,0.4361371,123070.0,123060.0,1.38585527]
[1755148637073,0.4361371,123070.0,123060.0,1.38545527]
[1755148637476,0.4361371,123070.0,123060.0,0.98558872]
[1755148637673,0.4361371,123070.0,123060.0,1.38545527]
[1755148638771,0.5173632,123070.0,123060.0,1.38545527]
[1755148639677,0.4361371,123070.0,123060.0,1.38545209]
[1755148641378,0.45073488,123070.0,123060.0,0.74203734]
[1755148641569,0.08993488,123070.0,123060.0,1.10283734]
[1755148641978,0.08993488,123070.0,123060.0,1.86855734]
[1755148642478,0.06712763,123070.0,123060.0,1.86855734]
[1755148642778,0.08993354,123070.0,123060.0,1.86855734]
[1755148642973,0.06712763,123070.0,123060.0,1.86855734]
[1755148644775,0.06712763,123070.0,123060.0,1.86819734]
[1755148644972,0.0081872,123080.0,123060.0,1.26529874]
[1755148645176,0.02280249,123080.0,123070.0,1.45766095]
[1755148645378,0.62822461,123090.0,123080.0,0.2000995]
[1755148645576,0.69990536,123090.0,123080.0,0.59996605]
[1755148645778,0.61869176,123090.0,123080.0,0.61266759]
[1755148646075,0.68367184,123090.0,123080.0,0.61266759]
[1755148646280,0.64657184,123090.0,123080.0,0.61266759]
[1755148646481,0.66156184,123090.0,123080.0,0.61266759]
[1755148646681,0.6705424,123090.0,123080.0,0.61666759]
[1755148646880,0.6934424,123090.0,123080.0,0.61666759]
[1755148647381,0.7746553,123090.0,123080.0,0.21680104]
[1755148647682,0.7746553,123090.0,123080.0,0.61666759]
[1755148648074,0.7746553,123090.0,123080.0,0.61566759]
[1755148649784,0.7746553,123090.0,123080.0,0.61766759]
[1755148650179,0.7736553,123090.0,123080.0,0.21180104]
[1755148650483,0.7746553,123090.0,123080.0,0.98320104]
[1755148651875,0.7746553,123090.0,123080.0,0.21880104]
[1755148652084,0.7746553,123090.0,123080.0,0.98260104]
[1755148652285,0.7746553,123090.0,123080.0,0.98252104]
[1755148652484,0.7746553,123090.0,123080.0,1.38238759]
[1755148654289,0.7746553,123090.0,123080.0,1.38202759]
[1755148655492,0.6934424,123090.0,123080.0,1.38202759]
[1755148655682,0.7746556,123090.0,123080.0,1.38202759]
[1755148656891,0.6934424,123090.0,123080.0,1.38202759]
[1755148657087,0.3326424,123090.0,123080.0,1.38202759]
[1755148658290,0.4138556,123090.0,123080.0,1.38202759]
[1755148658988,0.3326424,123090.0,123080.0,1.38202759]
[1755148659189,0.2426924,123090.0,123080.0,1.38202759]
[1755148659384,0.2267624,123090.0,123080.0,1.38174759]
[1755148660294,0.2267624,123090.0,123080.0,1.38174697]
[1755148660481,0.2473324,123090.0,123080.0,0.98188042]
[1755148660687,0.2473324,123090.0,123080.0,1.38174697]
[1755148661091,0.2267624,123090.0,123080.0,1.38174697]
[1755148661696,0.2267624,123090.0,123080.0,0.98188042]
[1755148661990,0.16178232,123090.0,123080.0,1.38174697]
[1755148662590,0.15380176,123090.0,123080.0,2.26413325]
[1755148663686,0.15380176,123090.0,123080.0,1.50105325]
[1755148663883,0.15380176,123090.0,123080.0,2.26409325]
[1755148664089,0.11880176,123090.0,123080.0,2.26409325]
[1755148665297,0.02380176,123090.0,123080.0,2.26409325]
[1755148666595,0.02380176,123090.0,123080.0,2.26409185]
[1755148667202,0.02380176,123090.0,123080.0,1.50105185]
[1755148667500,0.02380176,123090.0,123080.0,2.26405185]
[1755148667699,0.02380176,123090.0,123080.0,2.26401185]
[1755148668604,0.02380176,123090.0,123080.0,2.32868534]
[1755148670098,0.02380176,123090.0,123080.0,1.56572534]
[1755148670301,0.02380176,123090.0,123080.0,2.32864534]
[1755148674600,0.02380176,123090.0,123080.0,1.50105185]
[1755148674806,0.58361486,123090.0,123080.0,1.10635875]
[1755148675114,0.69361486,123090.0,123080.0,1.10635875]
[1755148675413,0.69361486,123090.0,123080.0,0.98464058]
[1755148675819,0.69361486,123090.0,123080.0,0.22180058]
[1755148676012,0.69361486,123090.0,123080.0,0.98464058]
[1755148676721,0.69361486,123090.0,123080.0,0.22180058]
[1755148676921,0.69361486,123090.0,123080.0,0.98464058]
[1755148677715,0.69361486,123090.0,123080.0,0.91176058]
[1755148678023,1.09348141,123090.0,123080.0,0.01970108]
[1755148678218,1.14348141,123090.0,123080.0,0.007]
[1755148678423,0.1285063,123070.0,123060.0,0.8680983]
[1755148678618,0.60135806,123070.0,123060.0,0.88080171]
[1755148678817,0.60135806,123070.0,123060.0,0.11796171]
[1755148680622,0.60135806,123070.0,123060.0,0.12742171]
[1755148680824,0.60135806,123070.0,123060.0,0.14354171]
[1755148681124,0.60335806,123070.0,123060.0,0.21753171]
[1755148681324,0.60335806,123070.0,123060.0,0.61939826]
[1755148681722,0.47918176,123070.0,123060.0,0.61939826]
[1755148681918,0.38560176,123070.0,123060.0,0.61939826]
[1755148682226,0.46682806,123070.0,123060.0,1.38223826]
[1755148682425,0.47918176,123070.0,123060.0,1.38223826]
[1755148684432,0.56040806,123070.0,123060.0,1.38223826]
[1755148684729,0.19960806,123070.0,123060.0,1.38223826]
[1755148686322,0.19960806,123070.0,123060.0,1.38223774]
[1755148687021,0.19960806,123070.0,123060.0,0.61939774]
[1755148687320,0.19960806,123070.0,123060.0,1.38227774]
[1755148687821,0.22255806,123070.0,123060.0,1.38227774]
[1755148688128,0.58335806,123070.0,123060.0,1.38227774]
[1755148688528,0.22255806,123070.0,123060.0,1.38227774]
[1755148689030,0.22255806,123070.0,123060.0,1.36957485]
[1755148689231,0.22255806,123070.0,123060.0,0.60669485]
[1755148689432,0.22255806,123070.0,123060.0,1.36953485]
[1755148689632,0.56040806,123070.0,123060.0,1.36953485]
[1755148690329,0.56040806,123070.0,123060.0,0.60669485]
[1755148690523,0.58335806,123070.0,123060.0,1.36957485]
[1755148691035,0.58335806,123070.0,123060.0,0.60669485]
[1755148691531,0.58335806,123070.0,123060.0,1.36953485]
[1755148692429,0.56040806,123070.0,123060.0,1.36953485]
[1755148693328,0.19960806,123070.0,123060.0,1.36953485]
[1755148693534,0.56040806,123070.0,123060.0,1.36953485]
[1755148694631,0.56040806,123070.0,123060.0,0.60669485]
[1755148694832,0.56040806,123070.0,123060.0,1.36949485]
[1755148695024,0.56040806,123070.0,123060.0,0.60669485]
[1755148695528,0.56040806,123070.0,123060.0,1.36949485]
[1755148696425,0.19960806,123070.0,123060.0,1.38219826]
[1755148696932,0.19960806,123070.0,123060.0,1.36949485]
[1755148697329,0.56040816,123070.0,123060.0,0.60669485]
[1755148697529,0.48958816,123070.0,123060.0,1.36949485]
[1755148698033,0.46682816,123070.0,123060.0,1.36949485]
[1755148698430,0.55133816,123070.0,123060.0,1.36949485]
[1755148698730,0.56040816,123070.0,123060.0,1.36949485]
[1755148699327,0.56040816,123070.0,123060.0,1.38219818]
[1755148699829,0.56040816,123070.0,123060.0,1.36949485]
[1755148700029,0.56040816,123070.0,123060.0,1.38219818]
[1755148702329,0.56040816,123070.0,123060.0,1.38211818]
[1755148702730,0.54609816,123070.0,123060.0,1.38211818]
[1755148702930,0.45580176,123070.0,123060.0,1.38211818]
[1755148703227,0.02480176,123070.0,123060.0,0.98019818]
[1755148703433,0.02480176,123070.0,123060.0,1.38211818]
[1755148704626,0.10602816,123070.0,123060.0,0.61939818]
[1755148704927,0.10602816,123070.0,123060.0,1.38207818]
[1755148706837,0.13768816,123070.0,123060.0,1.38207818]
[1755148707636,0.02480176,123070.0,123060.0,1.38203818]
[1755148708137,0.02480176,123070.0,123060.0,1.74283818]
[1755148711238,0.10602766,123070.0,123060.0,1.38203818]
[1755148713741,0.10602766,123070.0,123060.0,1.3820379]
[1755148715242,0.10602766,123070.0,123060.0,0.6193979]
[1755148715541,0.10602766,123070.0,123060.0,1.3818779]
[1755148717836,0.18493766,123070.0,123060.0,1.3817979]
[1755148718040,0.22228766,123070.0,123060.0,1.3817979]
[1755148718239,0.58308766,123070.0,123060.0,1.3817979]
[1755148718441,0.56043766,123070.0,123060.0,1.3817979]
[1755148719139,0.19963766,123070.0,123060.0,1.3817979]
[1755148719742,0.19963766,123070.0,123060.0,0.6193979]
[1755148719944,0.19963766,123070.0,123060.0,1.3817579]
[1755148722543,0.18493766,123070.0,123060.0,1.3817579]
[1755148722744,0.18493766,123070.0,123060.0,0.98189155]
[1755148723042,0.18493766,123070.0,123060.0,1.3817581]
[1755148725549,0.18493766,123070.0,123060.0,0.98177155]
[1755148725550,0.70950421,123070.0,123060.0,0.98177155]
[1755148725752,1.09295421,123070.0,123060.0,0.91324718]
[1755148725952,0.71108159,123070.0,123060.0,0.18277948]